lending/lending_fUSD_20240111
["ID","MTS","AMOUNT","RATE_DAILY","PERIOD"]
[311213297,1704984495853,-7770.70671844,0.00030998,4]
[311213298,1704984495881,-294.17390721,0.00030998,4]
[311213299,1704984495915,-1947.051,0.00030998,2]
[311213300,1704984495949,-2136.08960768,0.00030999,4]
[311213301,1704984495978,-313.79096587,0.00030999,4]
[311213302,1704984496006,-523.09803935,0.00030999,4]
[311213303,1704984496033,-500.0,0.00031,3]
[311213304,1704984496060,-499.99,0.00031,2]
[311213305,1704984496086,-2234.4,0.00031,2]
[311213306,1704984496112,-499.99,0.00031,2]
[311213307,1704984496141,-686.29,0.00031,2]
[311213308,1704984496175,-1011.5,0.00031,2]
[311213309,1704984496208,-276.88,0.00031,2]
[311213310,1704984496237,-789.47480289,0.00031036,2]
[311213311,1704984496273,-160.74,0.00031124,2]
[311213312,1704984496302,-155.75,0.00031132,2]
[311213313,1704984496329,-1724.05092364,0.000312,4]
[311213314,1704984496361,-500.0,0.000312,2]
[311213315,1704984496390,-166.43,0.0003122,2]
[311213316,1704984496418,-155.75,0.00031295,2]
[311213317,1704984496448,-450.0,0.00031437,3]
[311213318,1704984496476,-155.75,0.00031457,2]
[311213319,1704984496502,-477.28,0.00031508,2]
[311213320,1704984496530,-155.75,0.00031619,2]
[311213321,1704984496559,-161.88367686,0.00031696,2]
[311213322,1704984496587,-155.75,0.00031781,2]
[311213323,1704984496614,-155.75,0.00031944,2]
[311213324,1704984496661,153.0,0.0003,2]
[311213325,1704984496809,167.23,0.00031226,2]
[311213329,1704984511774,-155.75,0.00032106,2]
[311213330,1704984511800,-450.0,0.00032146,3]
[311213331,1704984511829,-167.23,0.00032204,2]
[311213332,1704984511858,-166.43,0.00032261,2]
[311213333,1704984511885,-155.75,0.00032268,2]
[311213334,1704984511912,-155.75,0.0003243,2]
[311213335,1704984511938,-155.75,0.00032592,2]
[311213336,1704984511966,-865.27066358,0.00032734,2]
[311213337,1704984511992,-155.75,0.00032755,2]
[311213338,1704984512016,-450.0,0.00032854,3]
[311213339,1704984512043,-330.27,0.00032877,15]
[311213340,1704984512068,-250.0,0.00032944,2]
[311213341,1704984512095,-550.0,0.00033,3]
[311213342,1704984512121,-282.94,0.00033162,2]
[311213343,1704984512152,-167.23,0.00033182,2]
[311213344,1704984512179,-166.43,0.00033302,2]
[311213345,1704984512211,-450.0,0.00033563,3]
[311213346,1704984512239,-153.84,0.00033852,2]
[311213347,1704984512270,-1000.0,0.00034,4]
[311213348,1704984512295,-7505.7049,0.00034,3]
[311213349,1704984512321,-2500.0,0.00034,2]
[311213350,1704984512346,-1000.0,0.00034,2]
[311213351,1704984512372,-2025.37723159,0.00034098,4]
[311213352,1704984512398,-198.5410396,0.00034098,4]
[311213353,1704984512423,-5839.49823407,0.00034098,4]
[311213354,1704984512450,-542.57515438,0.00034099,4]
[311213355,1704984512475,-100000.0,0.000341,2]
[311213356,1704984512502,-167.23,0.00034161,2]
[311213357,1704984512526,-450.0,0.00034271,3]
[311213358,1704984512550,-602.7786,0.0003432,2]
[311213359,1704984512574,-3300.1186,0.0003432,2]
[311213360,1704984512601,-166.43,0.00034342,2]
[311213361,1704984512627,-229.93,0.00034402,2]
[311213362,1704984512651,-194.6,0.0003441,2]
[311213363,1704984512680,-12422.80074947,0.00034419,3]
[311213364,1704984512707,-36506.0134,0.0003442,2]
[311213365,1704984512733,-1000.0,0.0003442,2]
[311213366,1704984512759,-814.561894,0.0003452,2]
[311213367,1704984512787,-174.74,0.00034521,2]
[311213368,1704984512817,-204.0,0.00034533,2]
[311213369,1704984512844,-250.0,0.00034654,2]
[311213370,1704984512871,-180.0,0.00034658,2]
[311213371,1704984512895,-150.0,0.00034723,2]
[311213372,1704984512923,-1221.842841,0.00034794,2]
[311213373,1704984512952,-153.84,0.00034878,2]
[311213374,1704984512978,-223.28251638,0.0003492,7]
[311213375,1704984513004,-1629.123788,0.00034931,2]
[311213376,1704984513029,-892.409101,0.0003498,3]
[311213377,1704984513056,-1804.3259406,0.00035,4]
[311213378,1704984513086,-600.0,0.00035,3]
[311213379,1704984513111,-5311.2128751,0.00035,2]
[311213385,1704984557087,-237.34873446,0.00032046,2]
[311213386,1704984557108,-1033.34505713,0.00035,4]
[311213387,1704984557240,-450.0,0.0003502,3]
[311213388,1704984557261,-1719.3797024,0.00035061,2]
[311213389,1704984558113,-119.6802976,0.00035061,2]
[311213390,1704984558134,-2036.404735,0.00035068,2]
[311213391,1704984558155,-161.88367686,0.00035097,2]
[311213392,1704984558180,-167.23,0.00035139,2]
[311213393,1704984561450,1000.0,0.00034,2]
[311213394,1704984565119,-1842.37,0.00035336,2]
[311213395,1704984565144,-2850.966629,0.00035342,2]
[311213396,1704984565167,-282.94,0.00035426,2]
[311213397,1704984565187,-163.15,0.00035457,2]
[311213398,1704984565210,-667.97,0.00035621,2]
[311213399,1704984565231,-1000.0,0.00035677,2]
[311213400,1704984565254,-450.0,0.00035729,3]
[311213401,1704984565274,-171.0,0.00035813,2]
[311213402,1704984565295,-153.84,0.00035904,2]
[311213403,1704984565316,-554.13283621,0.00036,4]
[311213404,1704984565337,-157.70973701,0.00036089,2]
[311213405,1704984565359,-151.0,0.00036116,7]
[311213406,1704984565381,-167.23,0.00036118,2]
[311213407,1704984565403,-223.28251632,0.00036346,7]
[311213408,1704984565422,-5839.49823407,0.00036408,4]
[311213409,1704984565444,-155.0,0.00036408,2]
[311213410,1704984565464,-1000.0,0.00036409,4]
[311213411,1704984565486,-11018.46604739,0.0003641,13]
[311213418,1704984582979,500.0,0.00035,2]
[311213421,1704984604675,2234.72248415,0.00034,2]
[311213422,1704984604697,265.27751585,0.00034,2]
[311213463,1704984631636,-160.56,0.00036233,2]
[311213464,1704984631646,-1000.0,0.00036408,4]
[311213466,1704984631656,-5839.49823407,0.00036409,4]
[311213468,1704984631665,-20184.38980982,0.0003641,13]
[311213470,1704984631675,-5382.17364025,0.0003641,10]
[311213472,1704984631684,-10456.49960643,0.0003641,13]
[311213474,1704984631694,-294.50570416,0.0003641,14]
[311213477,1704984631711,-450.0,0.00036437,3]
[311213480,1704984631724,-204.0,0.00036492,6]
[311213482,1704984631737,-330.27,0.00036613,15]
[311213484,1704984631750,-2000.0,0.000367,2]
[311213487,1704984631762,-499.99,0.000367,2]
[311213489,1704984631775,-151.0,0.00036853,4]
[311213491,1704984631789,-153.84,0.0003693,2]
[311213493,1704984631801,-650.0,0.00037,3]
[311213495,1704984631811,-5000.0,0.00037,3]
[311213497,1704984631821,-167.23,0.00037096,2]
[311213499,1704984631832,-150.0,0.000371,2]
[311213502,1704984631844,-450.0,0.00037146,3]
[311213504,1704984631855,-183.10039923,0.00037445,12]
[311213506,1704984631866,-365.02511635,0.00037445,9]
[311213508,1704984631877,-150.53030054,0.00037445,2]
[311213510,1704984631892,-395.47959003,0.00037455,4]
[311213511,1704984631904,-6861.0,0.0003749,3]
[311213513,1704984631915,-154.0,0.000375,7]
[311213515,1704984631926,-9980.53518716,0.000375,2]
[311213517,1704984631937,-684.80690526,0.00037505,2]
[311213520,1704984631949,-174.28094877,0.00037535,2]
[311213522,1704984631960,-162.01,0.00037535,2]
[311213524,1704984631973,-162.01,0.00037535,2]
[311213526,1704984631984,-162.01,0.00037535,2]
[311213528,1704984631995,-162.01,0.00037535,2]
[311213530,1704984632005,-162.01,0.00037535,2]
[311213532,1704984632015,-162.01,0.00037535,2]
[311213534,1704984632025,-162.01,0.00037535,2]
[311213537,1704984632037,-151.27,0.00037535,2]
[311213539,1704984632048,-155.33,0.00037535,2]
[311213541,1704984632059,-365.89,0.00037535,10]
[311213543,1704984632071,-304.91,0.00037535,10]
[311213545,1704984632082,-254.09,0.00037535,10]
[311213547,1704984632093,-175.46,0.00037544,2]
[311213549,1704984632104,-175.46,0.00037544,2]
[311213551,1704984632114,-175.46,0.00037544,2]
[311213552,1704984632126,-175.46,0.00037544,2]
[311213554,1704984632137,-789.66761273,0.00037545,2]
[311213556,1704984632148,-234.03755814,0.00037545,2]
[311213557,1704984632159,-500.0,0.00037545,120]
[311213559,1704984632170,-175481.46880623,0.00037545,30]
[311213560,1704984632186,-342330.42423213,0.00037545,30]
[311213561,1704984632199,-4788.3,0.00037545,30]
[311213562,1704984632215,-417265.91372452,0.00037545,30]
[311213563,1704984632228,-8367.49932479,0.00037545,30]
[311213564,1704984632252,-211.74,0.00037535,10]
[311213565,1704984632265,-138.26,0.00037545,30]
[311213566,1704984632282,-51628.13391233,0.00037545,30]
[311213567,1704984632295,-1913.286751,0.00037545,30]
[311213569,1704984632306,-1200000.0,0.00037545,30]
[311213571,1704984632318,-151.0,0.00037605,2]
[311213572,1704984632331,-282.94,0.0003769,2]
[311213573,1704984632343,-157.70973699,0.00037748,2]
[311213574,1704984632355,-223.28251632,0.00037771,8]
[311213575,1704984632366,-153.68,0.000378,3]
[311213576,1704984632377,-153.68,0.000378,3]
[311213577,1704984632388,-153.68,0.000378,3]
[311213578,1704984632399,-153.68,0.000378,3]
[311213579,1704984632411,-153.68,0.000378,3]
[311213580,1704984632421,-153.68,0.000378,3]
[311213581,1704984632433,-153.68,0.000378,3]
[311213582,1704984632444,-153.68,0.000378,3]
[311213583,1704984632456,-153.68,0.000378,3]
[311213584,1704984632469,-153.68,0.000378,3]
[311213585,1704984632482,-153.68,0.000378,3]
[311213586,1704984632494,-153.68,0.000378,3]
[311213587,1704984632506,-450.0,0.00037854,3]
[311213588,1704984632519,-164.94,0.00037895,2]
[311213589,1704984632531,-153.84,0.00037956,2]
[311213590,1704984632548,-167.23,0.00038075,2]
[311213591,1704984632559,-157.71,0.00038083,2]
[311213592,1704984632570,-152.0,0.00038395,3]
[311213593,1704984632581,-154.0,0.000384,7]
[311213594,1704984632591,-733.90141566,0.00038414,8]
[311213595,1704984632602,-507.81996502,0.00038414,8]
[311213596,1704984632613,-2032.94597238,0.00038414,8]
[311213597,1704984632623,-1694.46694532,0.00038414,8]
[311213598,1704984632635,-150.53030045,0.00038416,2]
[311213599,1704984632646,-204.0,0.00038451,10]
[311213600,1704984632657,-161.88367686,0.00038499,2]
[311213601,1704984632669,-450.0,0.00038563,3]
[311213602,1704984632680,-23949.6114,0.00038684,2]
[311213603,1704984632692,-605.89315471,0.00038784,4]
[311213604,1704984632703,-280.72891337,0.00038784,4]
[311213605,1704984632715,-1462.29472329,0.00038797,4]
[311213606,1704984632726,-1000.0,0.00038797,10]
[311213607,1704984632738,-153.68,0.000389,3]
[311213608,1704984632752,-153.68,0.000389,3]
[311213609,1704984632764,-153.68,0.000389,3]
[311213610,1704984632774,-153.68,0.000389,3]
[311213611,1704984632786,-153.68,0.000389,3]
[311213612,1704984632797,-153.68,0.000389,3]
[311213613,1704984632808,-153.68,0.000389,3]
[311213614,1704984632818,-153.68,0.000389,3]
[311213615,1704984632828,-153.68,0.000389,3]
[311213616,1704984632838,-153.68,0.000389,3]
[311213617,1704984632849,-153.68,0.000389,3]
[311213618,1704984632859,-153.68,0.000389,3]
[311213619,1704984632879,-9696.81882,0.00038948,2]
[311213620,1704984632892,-155.0,0.0003898,4]
[311213621,1704984632911,-153.84,0.00038982,2]
[311213622,1704984632924,-1427.43973993,0.00039,2]
[311213623,1704984632936,-700.0,0.00039,3]
[311213624,1704984632947,-167.23,0.00039053,2]
[311213625,1704984632960,-997.08460261,0.00039078,2]
[311213626,1704984632972,-11216.4232,0.00039078,2]
[311213627,1704984632984,-2000.0,0.00039078,4]
[311213628,1704984632995,-155.92369904,0.00039176,4]
[311213629,1704984633007,-528.20860531,0.00039176,4]
[311213630,1704984633019,-171.53615181,0.00039176,4]
[311213631,1704984633031,-233.9536155,0.00039176,4]
[311213632,1704984633044,-1529.62786292,0.00039176,4]
[311213633,1704984633055,-214.57961971,0.00039176,4]
[311213634,1704984633066,-4019.09127962,0.00039176,4]
[311213635,1704984633078,-394.97858517,0.00039176,4]
[311213636,1704984633089,-281.73212903,0.00039176,2]
[311213637,1704984633101,-473.62078422,0.00039176,4]
[311213639,1704984633113,-207.1812264,0.00039177,4]
[311213641,1704984633124,-487.02993234,0.00039178,4]
[311213643,1704984633134,-500.0,0.00039178,4]
[311213645,1704984633145,-199.06320756,0.00039178,4]
[311213647,1704984633156,-500.0,0.00039178,4]
[311213649,1704984633167,-500.0,0.00039178,4]
[311213652,1704984633178,-500.0,0.00039178,4]
[311213654,1704984633190,-500.0,0.00039178,4]
[311213656,1704984633202,-500.0,0.00039178,4]
[311213658,1704984633213,-351.46803177,0.00039178,4]
[311213660,1704984633224,-500.0,0.00039178,4]
[311213662,1704984633236,-189.60204333,0.00039178,4]
[311213664,1704984633247,-500.0,0.00039178,4]
[311213667,1704984633259,-500.0,0.00039178,4]
[311213670,1704984633269,-500.0,0.00039178,4]
[311213672,1704984633281,-500.0,0.00039178,4]
[311213674,1704984633294,-279.39177507,0.00039178,4]
[311213676,1704984633305,-500.0,0.00039178,4]
[311213679,1704984633316,-626.97,0.00039178,4]
[311213681,1704984633326,-236.16011969,0.00039178,4]
[311213683,1704984633336,-500.0,0.00039178,4]
[311213685,1704984633347,-500.0,0.00039178,4]
[311213687,1704984633358,-500.0,0.00039178,4]
[311213689,1704984633369,-237.32,0.00039178,4]
[311213691,1704984633380,-500.0,0.00039178,4]
[311213694,1704984633391,-1000.0,0.00039178,2]
[311213696,1704984633402,-500.0,0.00039178,4]
[311213698,1704984633413,-500.0,0.00039178,4]
[311213700,1704984633424,-269.50591435,0.00039178,4]
[311213702,1704984633434,-500.0,0.00039178,4]
[311213704,1704984633445,-500.0,0.00039178,4]
[311213706,1704984633457,-500.0,0.00039178,4]
[311213707,1704984633468,-500.0,0.00039178,4]
[311213708,1704984633479,-381.04,0.00039178,4]
[311213709,1704984633490,-500.0,0.00039178,4]
[311213710,1704984633501,-500.0,0.00039178,4]
[311213711,1704984633516,-416.27,0.00039178,4]
[311213712,1704984633528,-500.0,0.00039178,4]
[311213713,1704984633541,-500.0,0.00039178,4]
[311213714,1704984633553,-410.51554632,0.00039178,4]
[311213715,1704984633563,-503.54831626,0.00039178,4]
[311213716,1704984633574,-511.58219242,0.00039178,4]
[311213717,1704984633586,-500.0,0.00039178,4]
[311213718,1704984633597,-500.0,0.00039178,4]
[311213719,1704984633608,-500.0,0.00039178,4]
[311213720,1704984633619,-500.0,0.00039178,4]
[311213721,1704984633630,-504.63785913,0.00039178,4]
[311213722,1704984633640,-500.0,0.00039178,4]
[311213723,1704984633651,-500.0,0.00039178,4]
[311213724,1704984633662,-500.0,0.00039178,4]
[311213725,1704984633673,-500.0,0.00039178,4]
[311213726,1704984633684,-500.0,0.00039178,4]
[311213727,1704984633696,-500.0,0.00039178,4]
[311213728,1704984633707,-500.0,0.00039178,4]
[311213729,1704984633718,-500.0,0.00039178,4]
[311213730,1704984633728,-500.0,0.00039178,4]
[311213731,1704984633738,-500.0,0.00039178,4]
[311213732,1704984633750,-500.0,0.00039178,4]
[311213733,1704984633760,-500.0,0.00039178,4]
[311213734,1704984633771,-500.0,0.00039178,4]
[311213735,1704984633781,-500.0,0.00039178,4]
[311213736,1704984633794,-500.0,0.00039178,4]
[311213737,1704984633805,-500.0,0.00039178,4]
[311213738,1704984633816,-500.0,0.00039178,4]
[311213739,1704984633826,-500.0,0.00039178,4]
[311213740,1704984633837,-500.0,0.00039178,4]
[311213741,1704984633848,-500.0,0.00039178,4]
[311213742,1704984633859,-500.0,0.00039178,4]
[311213743,1704984633869,-444.88,0.00039178,4]
[311213744,1704984633880,-500.0,0.00039178,4]
[311213745,1704984633891,-500.0,0.00039178,4]
[311213746,1704984633903,-196.65,0.00039178,4]
[311213747,1704984633914,-500.0,0.00039178,4]
[311213748,1704984633925,-500.0,0.00039178,4]
[311213749,1704984633936,-537.06108618,0.00039178,4]
[311213750,1704984633947,-500.0,0.00039178,4]
[311213751,1704984633958,-1804.91,0.00039178,2]
[311213752,1704984633969,-223.28251632,0.00039197,9]
[311213753,1704984633980,-186.35,0.0003926,2]
[311213754,1704984633991,-450.0,0.00039271,3]
[311213755,1704984634002,-150.53030045,0.00039388,4]
[311213756,1704984634015,-3237.8087219,0.000394,4]
[311213757,1704984634028,-500.0,0.00039452,4]
[311213758,1704984634043,-500.0,0.00039452,4]
[311213759,1704984634331,-500.0,0.00039452,4]
[311213760,1704984634343,-274.64,0.00039452,4]
[311213761,1704984634353,-500.0,0.00039452,4]
[311213762,1704984634364,-1000.0,0.00039452,2]
[311213763,1704984634375,-500.0,0.00039452,4]
[311213764,1704984634385,-500.0,0.00039452,4]
[311213765,1704984634395,-500.0,0.00039452,4]
[311213766,1704984634405,-500.0,0.00039452,4]
[311213767,1704984634415,-565.81,0.00039452,4]
[311213768,1704984634424,-251.97,0.00039452,4]
[311213769,1704984634434,-500.0,0.00039452,4]
[311213770,1704984634444,-500.0,0.00039452,4]
[311213771,1704984634454,-500.0,0.00039452,4]
[311213772,1704984634464,-500.0,0.00039452,4]
[311213773,1704984634473,-500.0,0.00039452,4]
[311213774,1704984634483,-526.59,0.00039452,4]
[311213775,1704984634493,-500.0,0.00039452,4]
[311213776,1704984634502,-5800.0,0.00039501,2]
[311213777,1704984634511,-1437.9225,0.00039626,2]
[311213778,1704984634521,-232.92,0.00039626,2]
[311213779,1704984634530,-481.12009372,0.00039726,4]
[311213780,1704984634542,-500.0,0.00039726,4]
[311213781,1704984634552,-500.0,0.00039726,4]
[311213782,1704984634562,-300.00528678,0.000399,4]
[311213783,1704984634572,-153.68,0.000399,3]
[311213784,1704984634581,-153.68,0.000399,3]
[311213785,1704984634591,-153.68,0.000399,3]
[311213786,1704984634601,-153.68,0.000399,3]
[311213787,1704984634610,-153.68,0.000399,3]
[311213788,1704984634620,-153.68,0.000399,3]
[311213789,1704984634629,-153.68,0.000399,3]
[311213790,1704984634639,-153.68,0.000399,3]
[311213791,1704984634649,-153.68,0.000399,3]
[311213792,1704984634659,-153.68,0.000399,3]
[311213793,1704984634669,-153.68,0.000399,3]
[311213794,1704984634679,-153.68,0.000399,3]
[311213795,1704984634689,-282.94,0.00039954,2]
[311213796,1704984634698,-892.409101,0.0003998,3]
[311213797,1704984634707,-742.48175089,0.00039997,4]
[311213798,1704984634718,-471.18586432,0.00039997,4]
[311213799,1704984634727,-17758.5821026,0.00039998,2]
[311213800,1704984634737,-1351.37240627,0.00039998,2]
[311213801,1704984634746,-155.42468431,0.0004,3]
[311213802,1704984634756,-155.0,0.0004,2]
[311213803,1704984634765,-22008.0721351,0.0004,4]
[311213804,1704984634775,-956.60549549,0.0004,2]
[311213805,1704984634784,-350.0,0.0004,120]
[311213806,1704984634797,-743.216472,0.0004,30]
[311213807,1704984634807,-500.0,0.0004,4]
[311213808,1704984634817,-2307.9,0.0004,30]
[311213809,1704984634826,-153.84,0.00040007,2]
[311213810,1704984634835,-450.0,0.0004002,3]
[311213811,1704984634845,-167.23,0.00040032,2]
[311213812,1704984634854,-1000.0,0.00040136,2]
[311213813,1704984634864,-500.0,0.00040273,4]
[311213814,1704984634874,-868.31072451,0.00040273,5]
[311213815,1704984634883,-330.27,0.00040349,15]
[311213816,1704984634893,-150.53030045,0.00040359,8]
[311213817,1704984634904,-150.0,0.00040389,2]
[311213818,1704984634914,-204.0,0.0004041,15]
[311213819,1704984634924,-2929.777,0.00040448,2]
[311213820,1704984634934,-12812.865,0.00040448,2]
[311213821,1704984634943,-2893.557,0.00040448,2]
[311213822,1704984634952,-1037.302,0.00040448,2]
[311213823,1704984634962,-150.0,0.00040448,2]
[311213824,1704984634971,-500.0,0.00040512,4]
[311213825,1704984634980,-500.0,0.00040521,4]
[311213826,1704984634990,-500.0,0.00040529,4]
[311213827,1704984634999,-500.0,0.00040538,4]
[311213828,1704984635009,-194.0,0.00040547,4]
[311213829,1704984635018,-500.0,0.00040547,4]
[311213830,1704984635028,-223.28251632,0.00040623,9]
[311213831,1704984635042,-94857.3732855,0.00040647,6]
[311213832,1704984635052,-997.08460245,0.00040657,5]
[311213833,1704984635063,-4004.0,0.000407,81]
[311213834,1704984635073,-7500.0,0.00040721,7]
[311213835,1704984635083,-100445.74884789,0.00040721,3]
[311213836,1704984635094,-350.0,0.00040849,120]
[311213837,1704984635105,-1643.01273169,0.00041,4]
[311213838,1704984635116,-6533.00368522,0.00041,2]
[311213839,1704984635125,-750.0,0.00041,3]
[311213840,1704984635136,-2002.68,0.00041,2]
[311213841,1704984635146,-900.00000099,0.00041,4]
[311213842,1704984635157,-543.574105,0.00041,2]
[311213843,1704984635168,-153.68,0.00041,4]
[311213844,1704984635179,-153.68,0.00041,4]
[311213845,1704984635190,-153.68,0.00041,4]
[311213846,1704984635204,-153.68,0.00041,4]
[311213847,1704984635214,-153.68,0.00041,4]
[311213848,1704984635224,-153.68,0.00041,4]
[311213849,1704984635235,-153.68,0.00041,4]
[311213850,1704984635246,-153.68,0.00041,4]
[311213851,1704984635256,-153.68,0.00041,4]
[311213852,1704984635267,-153.68,0.00041,4]
[311213853,1704984635277,-153.68,0.00041,4]
[311213854,1704984635289,-153.68,0.00041,4]
[311213855,1704984635302,-167.23,0.0004101,2]
[311213856,1704984635312,-153.84,0.00041033,2]
[311213857,1704984635323,-1000.0,0.00041095,2]
[311213858,1704984635333,-151.7,0.00041096,2]
[311213859,1704984635343,-180.0,0.00041096,2]
[311213860,1704984635353,-6839.50522379,0.00041119,2]
[311213861,1704984635364,-154.46462245,0.00041144,7]
[311213862,1704984635374,-167.16425662,0.00041153,2]
[311213863,1704984635384,-684.80690524,0.00041153,2]
[311213864,1704984635394,-1787.63,0.000412,5]
[311213865,1704984635404,-186.35,0.00041223,2]
[311213866,1704984635414,-17405.0,0.000413,5]
[311213867,1704984635425,-500.0,0.00041315,7]
[311213868,1704984635438,-500.0,0.00041315,7]
[311213869,1704984635448,-500.0,0.00041315,7]
[311213870,1704984635458,-157.70973699,0.00041324,3]
[311213871,1704984635469,-150.53030045,0.00041331,11]
[311213872,1704984635479,-150.0,0.00041389,60]
[311213873,1704984635489,-233.0,0.00041457,28]
[311213874,1704984635499,-500.0,0.00041589,7]
[311213875,1704984635508,-500.0,0.00041589,7]
[311213876,1704984635518,-353.0,0.00041696,30]
[311213877,1704984635527,-1179.00026079,0.00041696,30]
[311213878,1704984635538,-350.0,0.00041699,120]
[311213879,1704984635548,-151.0,0.00041783,2]
[311213880,1704984635557,-250.49088,0.00041783,2]
[311213881,1704984635567,-158.73998173,0.00041799,2]
[311213882,1704984635577,-500.0,0.00041862,7]
[311213883,1704984635587,-500.0,0.00041862,7]
[311213884,1704984635597,-157.71,0.00041891,2]
[311213885,1704984635607,-1007.40054701,0.000419,16]
[311213886,1704984635617,-161.88367686,0.000419,2]
[311213887,1704984635627,-167.23,0.00041989,2]
[311213888,1704984635637,-45082.468,0.00042,10]
[311213889,1704984635648,-1589.58652979,0.00042,40]
[311213890,1704984635657,-5202.06468094,0.00042,120]
[311213891,1704984635668,-2000.0,0.00042,30]
[311213892,1704984635678,-10000.0,0.00042,20]
[311213893,1704984635688,-200.0,0.00042,2]
[311213894,1704984635698,-153.68,0.00042,4]
[311213895,1704984635708,-153.68,0.00042,4]
[311213896,1704984635718,-153.68,0.00042,4]
[311213897,1704984635728,-153.68,0.00042,4]
[311213898,1704984635737,-153.68,0.00042,4]
[311213899,1704984635747,-153.68,0.00042,4]
[311213900,1704984635758,-153.68,0.00042,4]
[311213901,1704984635768,-153.68,0.00042,4]
[311213902,1704984635778,-153.68,0.00042,4]
[311213903,1704984635791,-153.68,0.00042,4]
[311213904,1704984635801,-153.68,0.00042,4]
[311213905,1704984635811,-153.68,0.00042,4]
[311213906,1704984635822,-153.68,0.00042,4]
[311213907,1704984635833,-153.68,0.00042,4]
[311213908,1704984635845,-153.68,0.00042,4]
[311213909,1704984635856,-153.68,0.00042,4]
[311213910,1704984635867,-223.28251632,0.00042049,10]
[311213911,1704984635880,-153.84,0.00042059,2]
[311213912,1704984635891,-2002.68,0.0004209,2]
[311213913,1704984635902,-901.59948558,0.00042134,120]
[311213914,1704984635914,-500.0,0.00042135,7]
[311213915,1704984635927,-500.0,0.00042135,7]
[311213916,1704984635938,-2131.29,0.00042145,2]
[311213917,1704984635949,-1007.4005469,0.00042173,16]
[311213918,1704984635960,-1000.0,0.00042181,15]
[311213919,1704984635971,-1000.0,0.00042181,15]
[311213920,1704984635981,-150.3939638,0.00042191,7]
[311213921,1704984635992,-282.94,0.00042218,2]
[311213922,1704984636002,-997.08460245,0.00042236,5]
[311213923,1704984636012,-150.53030045,0.00042302,15]
[311213924,1704984636023,-233.0,0.00042339,28]
[311213925,1704984636032,-589.48127376,0.00042365,2]
[311213926,1704984636045,-266.40241924,0.00042365,2]
[311213927,1704984636055,-204.0,0.00042369,19]
[311213928,1704984636065,-150.0,0.00042389,60]
[311213929,1704984636075,-1489.0,0.0004239,3]
[311213930,1704984636086,-500.0,0.00042408,7]
[311213931,1704984636096,-500.0,0.00042408,7]
[311213932,1704984636106,-1007.4005469,0.00042445,17]
[311213933,1704984636115,-156.77522657,0.00042452,2]
[311213934,1704984636125,-198.99730934,0.00042455,2]
[311213935,1704984636135,-189714.746571,0.00042455,9]
[311213936,1704984636144,-500.0,0.00042465,30]
[311213937,1704984636154,-500.0,0.00042465,30]
[311213938,1704984636163,-238.68,0.00042465,30]
[311213939,1704984636173,-597.84,0.00042465,30]
[311213940,1704984636182,-500.0,0.00042465,30]